bitfinex/quotes_BTCUSD_20250119
["timestamp","ask_amount","ask_price","bid_price","bid_amount"]
[1737295676552,0.24924081,104820.0,104810.0,0.2463286]
[1737295676706,0.09924081,104820.0,104810.0,0.3278286]
[1737295681001,0.09995169,104820.0,104810.0,0.3278286]
[1737295681784,0.09995169,104820.0,104810.0,0.2463286]
[1737295682388,0.24995169,104820.0,104810.0,0.2463286]
[1737295682769,0.24924081,104820.0,104810.0,0.2463286]
[1737295682999,0.29848162,104820.0,104810.0,0.0963286]
[1737295683195,1.04678162,104820.0,104810.0,0.0963286]
[1737295683521,1.12588162,104820.0,104810.0,0.0009246]
[1737295683962,1.12588162,104820.0,104810.0,0.0963346]
[1737295684303,1.02664081,104820.0,104810.0,0.0963346]
[1737295684503,0.92664081,104820.0,104810.0,0.0963346]
[1737295684800,0.94924081,104820.0,104810.0,0.0963346]
[1737295684935,0.24924081,104820.0,104810.0,0.2463346]
[1737295685144,0.09924081,104820.0,104810.0,0.2463346]
[1737295685375,0.63724081,104820.0,104810.0,0.2463346]
[1737295685583,0.09924081,104820.0,104810.0,0.2463346]
[1737295686968,0.09995169,104820.0,104810.0,0.2463346]
[1737295687324,0.09924081,104820.0,104810.0,0.2920346]
[1737295687683,0.538,104830.0,104820.0,0.245401]
[1737295687883,0.63724081,104830.0,104820.0,0.245401]
[1737295689395,0.78724081,104830.0,104820.0,0.245401]
[1737295689831,0.24924081,104830.0,104820.0,0.245401]
[1737295690029,0.22634081,104830.0,104820.0,0.095401]
[1737295690833,0.22634081,104830.0,104820.0,0.245401]
[1737295691391,0.32634081,104830.0,104820.0,0.245401]
[1737295691767,0.32634081,104830.0,104820.0,0.095401]
[1737295692410,0.22634081,104830.0,104820.0,0.095401]
[1737295693006,0.09924081,104830.0,104820.0,0.245401]
[1737295693143,0.24924081,104830.0,104820.0,0.245401]
[1737295693975,0.78724081,104830.0,104820.0,0.245401]
[1737295695361,0.24924081,104830.0,104820.0,0.245401]
[1737295696998,0.20165477,104830.0,104820.0,0.095401]
[1737295697183,0.20165477,104830.0,104810.0,0.0963336]
[1737295697184,0.1,104820.0,104810.0,0.0963336]
[1737295697393,0.19924081,104820.0,104810.0,0.0963336]
[1737295697524,0.19924081,104820.0,104810.0,0.0009246]
[1737295697726,0.09924081,104820.0,104810.0,0.0963346]
[1737295697956,0.19924081,104820.0,104810.0,0.0963346]
[1737295698151,0.19924081,104820.0,104810.0,0.0009246]
[1737295698346,0.23116867,104820.0,104810.0,0.0009246]
[1737295698549,0.19924081,104820.0,104810.0,0.0963346]
[1737295698754,0.19995169,104820.0,104810.0,0.0963346]
[1737295698958,0.19995169,104820.0,104810.0,0.0009246]
[1737295699584,0.42735169,104820.0,104810.0,0.0009246]
[1737295699924,0.63942133,104820.0,104810.0,0.0009246]
[1737295700131,0.48942133,104820.0,104810.0,0.0963346]
[1737295700443,1.18942133,104820.0,104810.0,0.0963346]
[1737295700755,0.48942133,104820.0,104810.0,0.0963346]
[1737295701163,0.50026696,104820.0,104810.0,0.0963346]
[1737295701770,0.38942133,104820.0,104810.0,0.0963346]
[1737295701977,0.31202133,104820.0,104810.0,0.2463346]
[1737295702223,0.46202133,104820.0,104810.0,0.2463346]
[1737295702424,0.31202133,104820.0,104810.0,0.2463346]
[1737295702660,0.46202133,104820.0,104810.0,0.2463346]
[1737295702863,0.31202133,104820.0,104810.0,0.2463346]
[1737295703094,0.24924081,104820.0,104810.0,0.2463346]
[1737295703267,0.09924081,104820.0,104810.0,0.2463346]
[1737295703683,0.09924081,104820.0,104810.0,0.3252346]
[1737295703836,0.09896744,104820.0,104810.0,0.3252346]
[1737295706702,0.09967832,104820.0,104810.0,0.2463346]
[1737295707279,0.24967832,104820.0,104810.0,0.2463346]
[1737295707479,0.24896744,104820.0,104810.0,0.2463346]
[1737295709233,0.09896744,104820.0,104810.0,0.0963346]
[1737295709843,0.09896744,104820.0,104810.0,0.2463346]
[1737295710538,0.32796744,104820.0,104810.0,0.2463346]
[1737295712954,0.22796744,104820.0,104810.0,0.2463346]
[1737295713363,0.31317686,104820.0,104810.0,0.2463346]
[1737295713888,0.41317686,104820.0,104810.0,0.0963346]
[1737295714222,0.50857786,104820.0,104810.0,0.0009246]
[1737295714339,0.41317686,104820.0,104810.0,0.0009246]
[1737295714555,0.69099099,104820.0,104810.0,0.0009246]
[1737295715376,0.54099099,104820.0,104810.0,0.0963346]
[1737295715580,0.69099099,104820.0,104810.0,0.0009246]
[1737295715800,0.69099099,104820.0,104810.0,0.0963346]
[1737295716002,1.07443338,104820.0,104810.0,0.0963346]
[1737295716635,0.86140983,104820.0,104810.0,0.0009246]
[1737295716848,0.86140983,104820.0,104810.0,0.0963346]
[1737295717539,1.07443338,104820.0,104810.0,0.0963346]
[1737295717736,1.07443338,104820.0,104810.0,0.0009246]
[1737295718077,1.09389341,104820.0,104810.0,0.0963346]
[1737295718457,0.88086986,104820.0,104810.0,0.0963346]
[1737295718685,0.88086986,104820.0,104810.0,0.0009246]
[1737295719321,1.25000348,104820.0,104810.0,0.0009246]
[1737295719528,1.09389341,104820.0,104810.0,0.0009246]
[1737295719680,1.08929441,104820.0,104810.0,0.0009246]
[1737295721376,0.96148028,104820.0,104810.0,0.0009246]
[1737295721772,0.96237929,104820.0,104810.0,0.0009246]
[1737295722178,1.66237929,104820.0,104810.0,0.0009246]
[1737295722456,1.7616201,104820.0,104810.0,0.0009246]
[1737295723014,1.66237929,104820.0,104810.0,0.0009246]
[1737295724256,1.66237929,104820.0,104810.0,0.0963346]
[1737295724257,1.56697829,104820.0,104810.0,0.0963346]
[1737295724674,1.31135003,104820.0,104810.0,0.0963346]
[1737295725303,1.41135003,104820.0,104810.0,0.0963346]
[1737295725519,0.71135003,104820.0,104810.0,0.0963346]
[1737295725779,0.88146053,104820.0,104810.0,0.0963346]
[1737295726239,0.98070134,104820.0,104810.0,0.0963346]
[1737295726392,0.88146053,104820.0,104810.0,0.0963346]
[1737295727416,1.02686153,104820.0,104810.0,0.0009246]
[1737295727634,1.57686153,104820.0,104810.0,0.0009246]
[1737295729130,1.73693754,104820.0,104810.0,0.0009246]
[1737295730184,1.48130928,104820.0,104810.0,0.0009246]
[1737295730448,1.58055009,104820.0,104810.0,0.0009246]
[1737295730799,1.48130928,104820.0,104810.0,0.0009246]
[1737295732137,1.23590828,104820.0,104810.0,0.0009246]
[1737295732344,1.33590828,104820.0,104810.0,0.0963346]
[1737295732541,1.30349721,104820.0,104810.0,0.0963346]
[1737295733364,1.45349721,104820.0,104810.0,0.0963346]
[1737295733539,1.13338586,104820.0,104810.0,0.0963346]
[1737295734348,1.28338586,104820.0,104810.0,0.0963346]
[1737295734757,1.08698586,104820.0,104810.0,0.0963346]
[1737295734927,0.28698586,104820.0,104810.0,0.0963346]
[1737295735126,0.35438586,104820.0,104810.0,0.0963346]
[1737295735830,0.11932648,104820.0,104810.0,0.0963346]
[1737295735957,0.24986645,104820.0,104810.0,0.0963346]
[1737295736385,0.09986645,104820.0,104810.0,0.0963346]
[1737295736726,0.18492583,104820.0,104810.0,0.0963346]
[1737295737446,1.08492583,104820.0,104810.0,0.0963346]
[1737295738323,1.12282092,104820.0,104810.0,0.0963346]
[1737295738523,1.98492583,104820.0,104810.0,0.0963346]
[1737295738936,1.89986645,104820.0,104810.0,0.0963346]
[1737295739141,2.79986645,104820.0,104810.0,0.0963346]
[1737295739923,2.88492583,104820.0,104810.0,0.0963346]
[1737295740541,3.17956764,104820.0,104810.0,0.0009246]
[1737295740912,4.02956764,104820.0,104810.0,0.0009246]
[1737295741360,4.06175571,104820.0,104810.0,0.0963346]
[1737295741579,3.9625149,104820.0,104810.0,0.0963346]
[1737295741977,3.7125149,104820.0,104810.0,0.0963346]
[1737295742131,3.0125149,104820.0,104810.0,0.0963346]
[1737295742309,3.0125149,104820.0,104810.0,0.1963346]
[1737295742514,3.18263367,104820.0,104810.0,0.1963346]
[1737295743565,3.18263367,104820.0,104810.0,0.3463346]
[1737295743566,2.88492583,104820.0,104810.0,0.3463346]
[1737295744815,2.86410703,104820.0,104810.0,0.3463346]
[1737295745020,2.79986645,104820.0,104810.0,0.1963346]
[1737295745619,2.79986645,104820.0,104810.0,0.1009246]
[1737295745880,2.79986645,104820.0,104810.0,0.1963346]
[1737295748407,2.89526745,104820.0,104810.0,0.1009246]
[1737295748750,2.79986645,104820.0,104810.0,0.1963346]
[1737295748952,2.8106859,104820.0,104810.0,0.1963346]
[1737295749931,2.90992671,104820.0,104810.0,0.1963346]
[1737295750280,3.02333435,104820.0,104810.0,0.1963346]
[1737295751843,3.72333435,104820.0,104810.0,0.1963346]
[1737295753903,3.89345312,104820.0,104810.0,0.1963346]
[1737295755834,4.10610158,104820.0,104810.0,0.1963346]
[1737295756026,4.09528213,104820.0,104810.0,0.3463346]
[1737295756251,3.39528213,104820.0,104810.0,0.3463346]
[1737295757215,2.88492583,104820.0,104810.0,0.3463346]
[1737295757935,3.03492583,104820.0,104810.0,0.3463346]
[1737295758156,2.88492583,104820.0,104810.0,0.3463346]
[1737295758319,2.94986645,104820.0,104810.0,0.3463346]
[1737295759399,2.79986645,104820.0,104810.0,0.3463346]
[1737295760155,2.79986645,104820.0,104810.0,0.4225346]
[1737295764249,2.79986645,104820.0,104810.0,0.43297925]
[1737295764864,2.70089901,104820.0,104810.0,0.43297925]
[1737295765574,2.70507317,104820.0,104810.0,0.43297925]
[1737295765776,2.70507317,104820.0,104810.0,0.53297925]
[1737295765777,2.62875317,104820.0,104810.0,0.53297925]
[1737295765989,2.60967317,104820.0,104810.0,0.53297925]
[1737295766296,2.59059317,104820.0,104810.0,0.53297925]
[1737295766496,2.58641901,104820.0,104810.0,0.57907925]
[1737295766703,2.59059474,104820.0,104810.0,0.57907925]
[1737295767388,2.59059474,104820.0,104810.0,0.47907925]
[1737295767579,2.59059474,104820.0,104810.0,0.57907925]
[1737295767720,2.49519474,104820.0,104810.0,0.57907925]
[1737295768551,2.49609375,104820.0,104810.0,0.57907925]
[1737295768966,1.59609375,104820.0,104810.0,0.57907925]
[1737295770130,1.59191802,104820.0,104810.0,0.57907925]
[1737295770976,1.51559802,104820.0,104810.0,0.57907925]
[1737295771111,1.47743802,104820.0,104810.0,0.57907925]
[1737295771325,1.45835802,104820.0,104810.0,0.57907925]
[1737295771770,1.42019802,104820.0,104810.0,0.57907925]
[1737295772134,1.32479802,104820.0,104810.0,0.57907925]
[1737295772558,1.32898113,104820.0,104810.0,0.57907925]
[1737295775562,1.32898113,104820.0,104810.0,0.47907925]
[1737295775712,1.32898113,104820.0,104810.0,0.57907925]
[1737295777917,1.25266113,104820.0,104810.0,0.57907925]
[1737295778357,1.21450113,104820.0,104810.0,0.57907925]
[1737295778536,1.15709165,104820.0,104810.0,0.57907925]
[1737295779175,1.09985165,104820.0,104810.0,0.57907925]
[1737295779385,1.06169165,104820.0,104810.0,0.57907925]
[1737295780368,1.04261165,104820.0,104810.0,0.57907925]
[1737295780543,0.98537165,104820.0,104810.0,0.57907925]
[1737295780750,0.96629165,104820.0,104810.0,0.57907925]
[1737295781182,0.87089165,104820.0,104810.0,0.57907925]
[1737295781839,0.87089165,104820.0,104810.0,0.53297925]
[1737295783661,0.87089165,104820.0,104810.0,0.35677925]
[1737295783662,0.97013246,104820.0,104810.0,0.35677925]
[1737295783863,0.97013246,104820.0,104810.0,0.20677925]
[1737295784782,0.97013246,104820.0,104810.0,0.35677925]
[1737295785292,0.87089165,104820.0,104810.0,0.35677925]
[1737295785463,0.77549165,104820.0,104810.0,0.55224905]
[1737295786097,0.69917165,104820.0,104810.0,0.55224905]
[1737295786277,0.68009165,104820.0,104810.0,0.55224905]
[1737295786478,0.68009165,104820.0,104810.0,0.68064905]
[1737295786697,0.68009165,104820.0,104810.0,0.70627408]
[1737295787162,0.66101165,104820.0,104810.0,0.70627408]
[1737295787373,0.58469165,104820.0,104810.0,0.70627408]
[1737295787704,0.43469165,104820.0,104810.0,0.70627408]
[1737295788050,0.39653165,104820.0,104810.0,0.70627408]
[1737295788265,0.35837165,104820.0,104810.0,0.70627408]
[1737295788564,0.33412603,104820.0,104810.0,0.70627408]
[1737295789118,0.31504603,104820.0,104810.0,0.70627408]
[1737295789260,0.23872603,104820.0,104810.0,0.70627408]
[1737295790094,0.18148603,104820.0,104810.0,0.70627408]
[1737295790299,0.14332603,104820.0,104810.0,0.68064905]
[1737295791103,0.10516603,104820.0,104810.0,0.68064905]
[1737295791498,0.08608603,104820.0,104810.0,0.68064905]
[1737295791839,0.04792603,104820.0,104810.0,0.68064905]
[1737295792033,0.00976603,104820.0,104810.0,0.68064905]
[1737295792235,0.00976603,104820.0,104810.0,0.60013927]
[1737295792236,6e-07,104820.0,104810.0,0.60013927]
[1737295792444,0.00160969,104840.0,104830.0,0.095392]
[1737295792620,0.1008505,104840.0,104830.0,0.095392]
[1737295793248,0.10013962,104840.0,104830.0,0.095392]
[1737295795274,0.3308505,104840.0,104830.0,0.095392]
[1737295795475,0.33013962,104840.0,104830.0,0.095392]
[1737295796682,0.18013962,104840.0,104830.0,0.095392]
[1737295796858,0.3308505,104840.0,104830.0,0.095392]
[1737295797065,0.33013962,104840.0,104830.0,0.095392]
[1737295801045,0.86813962,104840.0,104830.0,0.095392]
[1737295802031,0.71813962,104840.0,104830.0,0.095392]
[1737295802408,0.86813962,104840.0,104830.0,0.095392]
[1737295805297,0.71813962,104840.0,104830.0,0.095392]
[1737295805504,8.1e-07,104840.0,104830.0,0.09634588]
[1737295805840,8.1e-07,104840.0,104830.0,0.095392]
[1737295806293,8.1e-07,104840.0,104830.0,0.77614083]
[1737295807294,8.1e-07,104840.0,104830.0,0.94746374]
[1737295809699,8.1e-07,104840.0,104830.0,1.16161738]
[1737295809856,8.1e-07,104840.0,104830.0,1.17206105]
[1737295811524,8.1e-07,104840.0,104830.0,1.27206105]
[1737295811733,8.1e-07,104840.0,104830.0,1.35146105]
[1737295812023,0.32937845,104870.0,104860.0,0.245365]
[1737295812175,0.42861926,104870.0,104860.0,0.245365]
[1737295812523,0.46188926,104870.0,104860.0,0.245365]
[1737295812755,0.18430019,104870.0,104860.0,0.245365]
[1737295812887,0.33430019,104870.0,104860.0,0.245365]
[1737295813089,0.18430019,104870.0,104860.0,0.245365]
[1737295813304,0.18434988,104870.0,104860.0,0.245365]
[1737295813522,0.0992905,104870.0,104860.0,0.245365]
[1737295813758,0.10958133,104870.0,104860.0,0.245365]
[1737295815018,0.23818133,104870.0,104860.0,0.245365]
[1737295815897,0.84910679,104870.0,104860.0,0.32229152]
[1737295816103,0.11773155,104880.0,104870.0,0.322156]
[1737295816256,0.11773155,104880.0,104870.0,0.45198994]
[1737295816699,0.11773155,104880.0,104870.0,0.55123075]
[1737295817043,0.07648089,104880.0,104870.0,0.55123075]
[1737295817249,0.0773797,104900.0,104890.0,0.345337]
[1737295817483,0.0392477,104900.0,104890.0,0.45131687]
[1737295817686,0.0392477,104900.0,104890.0,0.55055768]
[1737295817888,0.1504286,104930.0,104910.0,0.1]
[1737295818106,0.0004286,104930.0,104920.0,0.27447589]
[1737295818313,0.1504286,104930.0,104920.0,0.27447589]
[1737295818508,0.0004286,104930.0,104920.0,0.27447589]
[1737295818931,0.1504286,104930.0,104920.0,0.27447589]
[1737295819152,0.1504286,104930.0,104920.0,0.27461734]
[1737295819333,0.0004286,104930.0,104920.0,0.27461734]
[1737295821024,0.0004286,104930.0,104920.0,0.37461734]
[1737295821527,0.0004286,104930.0,104920.0,0.38497997]
[1737295827008,0.0004286,104930.0,104920.0,0.42307397]
[1737295828879,0.9995775,104950.0,104940.0,0.245292]
[1737295829084,1.09881831,104950.0,104940.0,0.245292]
[1737295829285,1.07161831,104950.0,104940.0,0.245292]
[1737295829639,1.07161831,104950.0,104940.0,0.095292]
[1737295829845,0.55263962,104950.0,104940.0,0.095292]
[1737295830274,0.55263962,104950.0,104940.0,0.245292]
[1737295830466,0.547801,104930.0,104920.0,0.00014145]
[1737295830693,0.89704181,104930.0,104920.0,0.00014145]
[1737295831030,0.74704181,104930.0,104920.0,0.00014145]
[1737295831233,0.0756,104910.0,104900.0,0.09532]
[1737295831613,0.22275169,104910.0,104900.0,0.09546241]
[1737295831799,0.22634502,104910.0,104900.0,0.09546241]
[1737295832938,0.22990421,104910.0,104900.0,0.24546241]
[1737295833145,0.00430421,104910.0,104900.0,0.24546241]
[1737295833349,0.00644115,104910.0,104900.0,0.27554738]
[1737295833481,0.00428399,104910.0,104900.0,0.27554738]
[1737295833693,0.15,104920.0,104910.0,0.245319]
[1737295833904,0.24924081,104920.0,104910.0,0.245319]
[1737295835578,0.09924081,104920.0,104910.0,0.245319]
[1737295835809,0.24924081,104920.0,104910.0,0.245319]
[1737295836229,0.09924081,104920.0,104910.0,0.27540397]
[1737295836412,0.15,104930.0,104910.0,0.37070897]
[1737295836646,0.78724081,104940.0,104930.0,0.095301]
[1737295839203,0.63724081,104940.0,104930.0,0.095301]
[1737295840062,0.09924081,104940.0,104930.0,0.095301]
[1737295840279,0.09995169,104940.0,104930.0,0.095301]
[1737295842602,0.19524469,104940.0,104920.0,0.43591]
[1737295842798,0.09995169,104930.0,104920.0,0.28591]
[1737295842949,0.09995169,104930.0,104920.0,0.095304]
[1737295842950,0.32765169,104930.0,104920.0,0.095304]
[1737295843154,0.32694081,104930.0,104920.0,0.095304]
[1737295843526,0.17694081,104930.0,104920.0,0.095304]
[1737295843817,0.32694081,104930.0,104920.0,0.095304]
[1737295844485,0.1976,104920.0,104900.0,0.19169158]
[1737295844607,0.09924081,104910.0,104900.0,0.19168358]
[1737295844961,0.17694081,104910.0,104900.0,0.09636558]
[1737295847097,0.32694081,104910.0,104900.0,0.24636558]
[1737295847284,0.17694081,104910.0,104900.0,0.24636558]
[1737295847934,0.09924081,104910.0,104900.0,0.24636558]
[1737295848290,0.10784922,104910.0,104900.0,0.24636558]
[1737295848532,0.33830841,104910.0,104900.0,0.24636558]
[1737295848700,0.10784922,104910.0,104900.0,0.24636558]
[1737295851969,0.64584922,104910.0,104900.0,0.24636558]
[1737295852127,0.79584922,104910.0,104900.0,0.24636558]
[1737295852327,0.64584922,104910.0,104900.0,0.24636558]
[1737295852532,0.79584922,104910.0,104900.0,0.24636558]
[1737295852786,0.64584922,104910.0,104900.0,0.24636558]
[1737295853604,0.00860841,104910.0,104900.0,0.24636558]
[1737295853758,0.15860841,104910.0,104900.0,0.24636558]
[1737295853960,0.00860841,104910.0,104900.0,0.34636558]
[1737295855303,0.00860841,104910.0,104900.0,0.37784812]
[1737295855514,0.00860841,104910.0,104900.0,0.50544812]
[1737295855928,0.00860841,104910.0,104900.0,0.60468893]
[1737295856253,3.5e-07,104910.0,104900.0,0.60468893]
[1737295856625,8.5e-07,104910.0,104900.0,0.60468893]
[1737295856834,0.00419835,104910.0,104900.0,0.60468893]
[1737295858104,3.5e-07,104910.0,104900.0,0.60468893]
[1737295858307,0.0004277,104920.0,104910.0,0.37763327]
[1737295858509,0.0004277,104920.0,104910.0,0.47301457]
[1737295859134,2.77e-05,104920.0,104910.0,0.47301457]
[1737295860250,0.6858277,104940.0,104930.0,0.095301]
[1737295860401,0.78506851,104940.0,104930.0,0.095301]
[1737295860601,0.6858277,104940.0,104930.0,0.09625388]
[1737295860798,0.6858277,104940.0,104930.0,0.095301]
[1737295861006,0.15,104940.0,104930.0,0.095301]
[1737295861214,0.15,104940.0,104930.0,0.28684187]
[1737295861411,0.68492651,104950.0,104940.0,0.245292]
[1737295861630,0.09924081,104950.0,104940.0,0.435867]
[1737295861803,0.24924081,104950.0,104940.0,0.435867]
[1737295862288,0.00089986,104960.0,104950.0,0.095283]
[1737295862559,0.00107142,104960.0,104950.0,0.09623566]
[1737295862758,0.00107142,104960.0,104950.0,0.095283]
[1737295862986,0.15107142,104960.0,104950.0,0.095283]
[1737295863186,0.00107142,104960.0,104950.0,0.095283]
[1737295864093,0.15107142,104960.0,104950.0,0.095283]
[1737295864442,0.00107142,104960.0,104950.0,0.095283]
[1737295864648,0.15107142,104960.0,104950.0,0.095283]
[1737295864872,0.00107142,104960.0,104950.0,0.095283]
[1737295865248,0.00107142,104960.0,104950.0,0.12835847]
[1737295865862,0.15107142,104960.0,104950.0,0.12753386]
[1737295866064,0.15107142,104960.0,104950.0,0.09445839]
[1737295867093,0.25031223,104960.0,104950.0,0.09445839]
[1737295867529,0.10031223,104960.0,104950.0,0.09445839]
[1737295869218,0.10469124,104960.0,104950.0,0.09445839]
[1737295869381,0.25469124,104960.0,104950.0,0.09445839]
[1737295870829,0.15545043,104960.0,104950.0,0.12794108]
[1737295871029,0.00545043,104960.0,104950.0,0.12794108]
[1737295871319,0.15545043,104960.0,104950.0,0.12794108]
[1737295871523,0.61782651,104930.0,104920.0,0.29625117]
[1737295871737,0.15,104920.0,104910.0,0.46693345]
[1737295871961,0.6348782,104920.0,104910.0,0.18097545]
[1737295872183,0.63894497,104920.0,104910.0,0.08566145]
[1737295872623,0.63894497,104920.0,104910.0,0.18098045]
[1737295872948,0.63894497,104920.0,104910.0,0.18112286]
[1737295873938,0.38222846,104920.0,104910.0,0.00014241]
[1737295874805,0.18691846,104920.0,104910.0,0.00014241]
[1737295874941,0.33691846,104920.0,104910.0,0.09546141]
[1737295875123,0.28222846,104920.0,104910.0,0.00014241]
[1737295875337,0.28222846,104920.0,104900.0,0.00089817]
[1737295875338,0.178219,104910.0,104900.0,0.00089817]
[1737295875543,0.3829583,104910.0,104900.0,0.00104335]
[1737295875766,0.278228,104900.0,104890.0,0.00089817]
[1737295876122,0.245348,104880.0,104860.0,0.286084]
[1737295876406,0.10395832,104870.0,104860.0,0.28623049]
[1737295876536,0.19931432,104870.0,104860.0,0.00014849]
[1737295876741,0.18685832,104870.0,104860.0,0.00014849]
[1737295876993,0.18685832,104870.0,104860.0,0.09551349]
[1737295879627,0.1875692,104870.0,104860.0,0.09551349]
[1737295882561,0.18285169,104870.0,104860.0,0.09551349]
[1737295884380,0.53847977,104870.0,104860.0,0.00014849]
[1737295884571,0.43486889,104870.0,104860.0,0.00014849]
[1737295884815,1.23476889,104870.0,104860.0,0.00014849]
[1737295884950,0.25,104860.0,104840.0,0.00089754]
[1737295885157,0.34532569,104850.0,104840.0,0.00104608]
[1737295885387,0.34461481,104850.0,104840.0,0.00104608]
[1737295886415,0.52531481,104850.0,104840.0,0.00104608]
[1737295887032,0.54414158,104850.0,104840.0,0.00104608]
[1737295887238,0.56154597,104850.0,104840.0,0.00104608]
[1737295887611,1.31024597,104850.0,104840.0,0.00104608]
[1737295887979,1.08324597,104850.0,104840.0,0.00104608]
[1737295888818,1.16024597,104850.0,104840.0,0.00104608]
[1737295889723,1.09746758,104850.0,104840.0,0.09642908]
[1737295890122,0.39746758,104850.0,104840.0,0.09642908]
[1737295890678,0.24746758,104850.0,104840.0,0.09642908]
[1737295890936,0.22864081,104850.0,104840.0,0.09642908]
[1737295891249,0.09924081,104850.0,104840.0,0.09642908]
[1737295891389,0.09995169,104850.0,104840.0,0.09642908]
[1737295892672,0.09924081,104850.0,104840.0,0.09642908]
[1737295893083,0.09924081,104850.0,104840.0,0.24642908]
[1737295893502,0.15,104860.0,104850.0,0.095374]
[1737295893703,0.538,104870.0,104860.0,0.245365]
[1737295893907,0.688,104870.0,104860.0,0.245365]
[1737295894112,0.15,104880.0,104870.0,0.095356]
[1737295894321,0.24924081,104900.0,104880.0,0.531373]
[1737295894458,0.09924081,104900.0,104890.0,0.095337]
[1737295895614,0.09924081,104900.0,104890.0,0.09548554]
[1737295896991,0.09995169,104900.0,104890.0,0.09548554]
[1737295898155,0.09966871,104900.0,104890.0,0.09548554]
[1737295898769,0.10037959,104900.0,104890.0,0.09548554]
[1737295899113,0.09966871,104900.0,104890.0,0.09548554]
[1737295899499,0.10037959,104900.0,104890.0,0.09548554]
[1737295899906,0.09966871,104900.0,104890.0,0.14084013]
[1737295900051,0.04002081,104900.0,104890.0,0.14084013]
[1737295900252,0.04073169,104900.0,104890.0,0.14084013]
[1737295900662,0.04002081,104900.0,104890.0,0.11338867]
[1737295901303,0.04002081,104900.0,104890.0,0.10502911]
[1737295901520,0.04073169,104900.0,104890.0,0.10502911]
[1737295901742,0.15,104910.0,104900.0,0.28597]
[1737295901918,0.24924081,104910.0,104900.0,0.28597]
[1737295902754,0.24924081,104910.0,104900.0,0.29551357]
[1737295904669,0.24924081,104910.0,104900.0,0.00954357]
[1737295904670,0.39812007,104910.0,104900.0,0.00954357]
[1737295904861,0.29455981,104910.0,104900.0,0.00954357]
[1737295906141,0.99455981,104910.0,104900.0,0.00954357]
[1737295906347,0.99455981,104910.0,104900.0,0.10487157]
[1737295906555,0.99455981,104910.0,104900.0,0.00954357]
[1737295906765,0.79924081,104910.0,104900.0,0.10487157]
[1737295907191,0.09924081,104910.0,104900.0,0.095328]
[1737295909482,0.09966871,104910.0,104900.0,0.095328]
[1737295919572,0.12467836,104910.0,104900.0,0.095328]
[1737295919759,0.09966871,104910.0,104900.0,0.095328]
[1737295921053,0.09973461,104910.0,104900.0,0.095328]
[1737295921377,0.24973461,104910.0,104900.0,0.09622617]
[1737295921582,0.09973461,104910.0,104900.0,0.09622617]
[1737295921803,0.24973461,104910.0,104900.0,0.09622617]
[1737295922593,0.34505361,104910.0,104900.0,0.09622617]
[1737295922793,0.24973461,104910.0,104900.0,0.09622617]
[1737295923006,0.19505361,104910.0,104900.0,0.09622617]
[1737295923220,0.24973461,104910.0,104900.0,0.09622617]
[1737295923998,0.34505361,104910.0,104900.0,0.09622617]
[1737295924838,0.24973461,104910.0,104900.0,0.09622617]
[1737295925048,0.24973461,104910.0,104900.0,0.00089817]
[1737295925252,0.34505361,104910.0,104900.0,0.00089817]
[1737295925789,0.41090556,104910.0,104900.0,0.00089817]
[1737295925987,0.37645361,104910.0,104900.0,0.00089817]
[1737295927178,0.39945361,104910.0,104900.0,0.00089817]
[1737295927376,0.44625361,104910.0,104900.0,0.00089817]
[1737295927587,0.45665324,104910.0,104900.0,0.00089817]
[1737295928053,0.54121015,104910.0,104900.0,0.00089817]
[1737295928409,0.48531926,104910.0,104900.0,0.00089817]
[1737295928848,0.173,104900.0,104890.0,0.00014854]
[1737295929058,0.173,104900.0,104860.0,0.00196836]
[1737295929059,0.474856,104870.0,104860.0,0.00196836]
[1737295929267,0.095374,104850.0,104840.0,0.00089754]
[1737295929471,0.19461481,104850.0,104840.0,0.00104624]
[1737295930086,0.37601481,104850.0,104840.0,0.00104624]
[1737295930289,1.07601481,104850.0,104840.0,0.00104624]
[1737295930707,0.37601481,104850.0,104840.0,0.00104624]
[1737295931756,0.75759944,104850.0,104840.0,0.00104624]
[1737295932367,0.80275884,104850.0,104840.0,0.00104624]
[1737295932570,0.82228706,104850.0,104840.0,0.00104624]
[1737295932772,0.77712766,104850.0,104840.0,0.00104624]
[1737295933193,0.67712766,104850.0,104840.0,0.00104624]
[1737295933403,0.88977612,104850.0,104840.0,0.00104624]
[1737295933611,1.58977612,104850.0,104840.0,0.00104624]
[1737295933814,1.65837612,104850.0,104840.0,0.09642924]
[1737295934022,1.5434739,104850.0,104840.0,0.09642924]
[1737295934226,1.6388479,104850.0,104840.0,0.09642924]
[1737295934369,1.5434739,104850.0,104840.0,0.09642924]
[1737295934571,1.6388479,104850.0,104840.0,0.09642924]
[1737295934796,1.04461481,104850.0,104840.0,0.09642924]
[1737295935037,0.34461481,104850.0,104840.0,0.09642924]
[1737295935249,0.34461481,104850.0,104840.0,0.00104624]
[1737295936117,0.29461481,104850.0,104840.0,0.00104624]
[1737295936341,1.09751481,104850.0,104840.0,0.00104624]
[1737295936660,0.99751481,104850.0,104840.0,0.00104624]
[1737295936879,1.14751481,104850.0,104840.0,0.00104624]
[1737295937081,1.02261481,104850.0,104840.0,0.00104624]
[1737295937303,1.71608871,104850.0,104840.0,0.00104624]
[1737295938064,1.50462015,104850.0,104840.0,0.00104624]
[1737295938266,1.40537934,104850.0,104840.0,0.00104624]
[1737295938509,1.23526327,104850.0,104840.0,0.00104624]
[1737295938779,1.23526327,104850.0,104840.0,2.778e-05]
[1737295938989,1.40826327,104850.0,104840.0,2.778e-05]
[1737295939210,0.195392,104830.0,104820.0,0.00089901]
[1737295939421,0.89463281,104830.0,104820.0,0.00139561]
[1737295940077,1.04463281,104830.0,104820.0,0.00139561]
[1737295940291,0.89463281,104830.0,104820.0,0.00139561]
[1737295941021,1.04463281,104830.0,104820.0,0.00139561]
[1737295941221,0.89463281,104830.0,104820.0,0.00139561]
[1737295941425,1.04463281,104830.0,104820.0,0.00139561]
[1737295941736,0.90487175,104830.0,104820.0,0.00139561]
[1737295941940,0.92429839,104830.0,104820.0,0.00139561]
[1737295942367,0.37429839,104830.0,104820.0,0.00139561]
[1737295942575,0.09924081,104830.0,104820.0,0.09679661]
[1737295944067,0.10343929,104830.0,104820.0,0.09679661]
[1737295945550,0.00419848,104830.0,104820.0,0.36935056]
[1737295945798,0.14493017,104830.0,104820.0,0.36839661]
[1737295946468,0.14115959,104860.0,104840.0,0.15]
[1737295946672,0.2404004,104860.0,104850.0,0.09632765]
[1737295946874,0.2404004,104860.0,104850.0,0.24632765]
[1737295947044,0.14115959,104860.0,104850.0,0.245374]
[1737295947824,0.14115959,104860.0,104850.0,0.24728426]
[1737295949661,0.2404004,104860.0,104850.0,0.245374]
[1737295950755,0.7784004,104860.0,104850.0,0.245374]
[1737295952929,0.63766871,104860.0,104850.0,0.245374]
[1737295953338,0.7784004,104860.0,104850.0,0.245374]
[1737295953734,0.63766871,104860.0,104850.0,0.245374]
[1737295953934,0.7784004,104860.0,104850.0,0.24728426]